bitfinex-derivatives/quotes_SOLF0:USTF0_20251201
["timestamp","ask_amount","ask_price","bid_price","bid_amount"]
[1764559135238,10.4314,127.09,127.05,8.32]
[1764559135535,0.0603907,127.08,127.06,0.05307065]
[1764559136237,0.0603907,127.08,127.06,3.23307065]
[1764559137742,0.0603907,127.08,127.06,0.05307065]
[1764559137937,3.4103907,127.08,127.06,0.05307065]
[1764559138139,0.0603907,127.08,127.06,0.05307065]
[1764559138327,0.0603907,127.08,127.06,3.23307065]
[1764559138639,0.0603907,127.08,127.06,0.05307065]
[1764559138939,3.4103907,127.08,127.06,0.05307065]
[1764559139331,10.4924907,127.08,127.06,0.05307065]
[1764559139930,3.4103907,127.08,127.06,0.05307065]
[1764559140131,3.4103907,127.08,126.99,3.18]
[1764559140334,3.35,127.08,126.99,3.18]
[1764559140530,5.69682406,127.1,126.95,7.24]
[1764559140531,3.35,127.02,126.95,7.24]
[1764559140735,3.35,127.02,126.96,3.18]
[1764559140935,11.40807033,127.08,126.96,3.18]
[1764559140936,3.35,127.05,126.96,3.18]
[1764559141136,3.40002803,127.02,126.99,0.05845323]
[1764559141341,3.4068646,127.02,126.99,0.0522324]
[1764559141739,3.4068646,127.02,126.99,0.0022324]
[1764559141932,3.4068646,127.02,126.91,30.21211203]
[1764559141933,3.35,126.97,126.91,30.21211203]
[1764559142641,7.0875,126.98,126.92,3.18]
[1764559142944,0.05024507,126.96,126.94,3.2396563]
[1764559144236,10.4361,127.01,126.94,3.2396563]
[1764559144438,10.4361,127.01,126.95,3.18]
[1764559145344,0.05839769,126.99,126.97,0.05886244]
[1764559145543,3.40839769,126.99,126.97,0.05886244]
[1764559145743,3.40839769,126.99,126.92,3.18]
[1764559145944,3.40839769,126.99,126.89,14.58807033]
[1764559146143,3.35,126.99,126.9,3.18]
[1764559146740,0.05624142,126.96,126.93,0.05595433]
[1764559149039,0.05624142,126.96,126.93,3.23595433]
[1764559151050,3.40624142,126.96,126.93,0.05595433]
[1764559151437,3.40624142,126.96,126.93,3.23595433]
[1764559151641,0.05624142,126.96,126.93,3.23595433]
[1764559152949,3.35,127.02,126.96,3.18]
[1764559153447,10.4355,127.02,126.96,3.18]
[1764559154046,0.05812652,127.0,126.98,0.05493491]
[1764559154551,3.40812652,127.0,126.98,0.05493491]
[1764559155149,0.05812652,127.0,126.98,0.05493491]
[1764559156344,3.35,126.99,126.91,10.2709]
[1764559156549,3.35,126.99,126.91,3.18]
[1764559157157,3.35,127.02,126.93,14.58807033]
[1764559157454,3.40526534,126.99,126.96,0.05583505]
[1764559157649,3.40531116,126.99,126.96,0.05077974]
[1764559158256,3.35,126.98,126.96,0.05077974]
[1764559158847,3.35,126.97,126.96,0.05077974]
[1764559163952,7.0876,126.98,126.96,0.05077974]
[1764559163953,10.3076,126.98,126.96,0.05077974]
[1764559164661,3.27,126.97,126.96,0.05077974]
[1764559165764,10.3589,126.96,126.9,14.63807033]
[1764559166159,3.27,126.95,126.9,14.63807033]
[1764559166555,3.27,126.95,126.91,3.23]
[1764559166761,3.32709207,126.94,126.91,0.05373652]
[1764559167763,3.27,126.92,126.91,0.05373652]
[1764559168160,4.85,126.92,126.86,27.22]
[1764559168356,3.27,126.91,126.86,30.45]
[1764559168964,3.27,126.91,126.86,27.22]
[1764559169169,0.05008665,126.9,126.87,0.05673927]
[1764559169360,3.27,126.89,126.87,0.05234018]
[1764559169566,3.27,126.88,126.81,7.0966]
[1764559169878,3.27,126.88,126.81,10.3266]
[1764559170371,7.0939,126.87,126.81,10.3266]
[1764559170571,0.05668657,126.85,126.83,0.05010751]
[1764559170773,0.05668657,126.85,126.83,3.28010751]
[1764559172264,10.3617,126.91,126.85,3.23]
[1764559173169,3.27,126.89,126.85,3.23]
[1764559173472,0.05167526,126.88,126.87,0.05745898]
[1764559175874,3.32167526,126.88,126.87,0.05745898]
[1764559176280,3.27,126.87,126.81,11.40807033]
[1764559176474,3.27,126.87,126.8,27.22]
[1764559176771,10.3679,126.8,126.75,14.63807033]
[1764559176960,3.27,126.79,126.72,21.73977033]
[1764559177369,0.06023533,126.77,126.74,3.28284844]
[1764559177571,0.05313803,126.77,126.74,3.28994798]
[1764559177868,10.42273803,126.77,126.74,0.05994798]
[1764559178074,3.27,126.76,126.74,0.05994798]
[1764559178868,0.05313803,126.77,126.74,0.05994798]
[1764559179061,0.05313803,126.77,126.74,3.28994798]
[1764559180586,0.05313803,126.77,126.75,10.53256879]
[1764559180868,0.05313803,126.77,126.75,7.30256879]
[1764559181073,10.42243803,126.77,126.74,0.05994798]
[1764559181274,3.27,126.76,126.74,0.05994798]
[1764559182072,7.15243803,126.77,126.74,0.05994798]
[1764559182275,10.42243803,126.77,126.74,0.05994798]
[1764559182970,0.05313803,126.77,126.74,3.28994798]
[1764559183172,0.05313803,126.77,126.76,3.23]
[1764559183479,0.05313803,126.77,126.75,7.30256879]
[1764559184678,0.05313803,126.77,126.74,10.59251677]
[1764559185173,3.32313803,126.77,126.74,0.05994798]
[1764559185572,10.3718,126.73,126.68,10.53256879]
[1764559185776,3.27,126.73,126.68,10.53256879]
[1764559186073,3.27,126.73,126.65,7.1056]
[1764559186074,3.27,126.73,126.65,10.53256879]
[1764559186471,3.27,126.69,126.68,0.05600428]
[1764559186777,10.43182581,126.7,126.67,0.0521347]
[1764559187081,3.27,126.69,126.67,0.0521347]
[1764559187978,3.27,126.68,126.67,0.0521347]
[1764559188577,10.3741,126.69,126.67,0.0521347]
[1764559188783,7.1041,126.69,126.67,0.0521347]
[1764559189075,0.05822581,126.7,126.67,3.2821347]
[1764559189282,0.05822581,126.7,126.68,10.53256879]
[1764559189874,7.1017,126.73,126.69,3.41]
[1764559190183,3.19,126.79,126.71,7.30256879]
[1764559190478,10.2894,126.77,126.71,7.30256879]
[1764559190683,7.0994,126.77,126.72,3.41]
[1764559190975,0.05749152,126.76,126.73,0.05699596]
[1764559191181,0.05749152,126.76,126.73,3.46699596]
[1764559191371,0.05749152,126.76,126.74,10.71256879]
[1764559191574,0.05749152,126.76,126.73,0.05699596]
[1764559191983,7.15749152,126.76,126.73,0.05699596]
[1764559192282,0.05749152,126.76,126.73,3.46699596]
[1764559192680,0.05749152,126.76,126.75,7.30256879]
[1764559192883,3.19,126.82,126.75,10.71256879]
[1764559193086,10.2883,126.79,126.75,7.30256879]
[1764559193275,3.19,126.79,126.73,7.30256879]
[1764559193878,0.05509061,126.77,126.75,0.0553892]
[1764559194678,0.05509061,126.77,126.75,3.4653892]
[1764559195177,0.05509061,126.77,126.75,0.0553892]
[1764559196679,0.05509061,126.77,126.75,3.4653892]
[1764559196883,0.05509061,126.77,126.76,10.71256879]
[1764559197084,10.2873,126.81,126.76,10.71256879]
[1764559197577,10.2873,126.81,126.77,3.41]
[1764559197980,0.0518766,126.8,126.78,0.05464043]
[1764559198376,0.0518766,126.8,126.78,3.46464043]
[1764559198576,0.0518766,126.8,126.78,0.05464043]
[1764559198770,3.2418766,126.8,126.78,0.05464043]
[1764559198974,3.19,126.79,126.78,0.05464043]
[1764559201482,0.0518766,126.8,126.79,3.41]
[1764559201683,3.2418766,126.8,126.78,0.05464043]
[1764559201884,0.0518766,126.8,126.78,3.46464043]
[1764559203786,0.0518766,126.8,126.78,0.05464043]
[1764559203992,3.2418766,126.8,126.78,0.05464043]
[1764559204387,10.3396766,126.8,126.78,0.05464043]
[1764559204595,0.0518766,126.8,126.78,0.05464043]
[1764559204780,3.2418766,126.8,126.78,0.05464043]
[1764559205994,10.3396766,126.8,126.78,0.05464043]
[1764559209099,0.0518766,126.8,126.79,10.71256879]
[1764559209302,8.93628977,126.87,126.8,3.41]
[1764559209596,3.19,126.89,126.83,3.41]
[1764559209897,5.7472008,126.88,126.83,3.41]
[1764559210098,7.0945,126.86,126.83,3.41]
[1764559210393,3.19,126.92,126.85,10.71256879]
[1764559210695,3.19,126.94,126.86,3.41]
[1764559210900,8.94184268,126.93,126.86,3.41]
[1764559211097,3.19,126.93,126.86,3.41]
[1764559211398,10.33429376,126.91,126.88,0.05457323]
[1764559211601,7.14429376,126.91,126.88,0.05457323]
[1764559212295,7.0922,126.9,126.88,0.05457323]
[1764559214402,0.05269376,126.91,126.88,0.05457323]
[1764559214598,0.05269376,126.91,126.88,3.46457323]
[1764559215199,7.14439376,126.91,126.88,3.46457323]
[1764559215393,3.24269376,126.91,126.88,0.05457323]
[1764559216400,7.0922,126.9,126.88,0.05457323]
[1764559216700,3.24269376,126.91,126.88,0.05457323]
[1764559217296,0.05269376,126.91,126.88,0.05457323]
[1764559217491,0.05269376,126.91,126.88,3.46457323]
[1764559217709,0.05269376,126.91,126.89,3.41]
[1764559218404,0.05269376,126.91,126.88,7.35714202]
[1764559218706,0.05269376,126.91,126.88,3.46457323]
[1764559219702,0.05269376,126.91,126.89,3.41]
[1764559219907,10.1822,126.9,126.88,0.05457323]
[1764559220104,3.09,126.89,126.82,10.47256879]
[1764559220505,3.09,126.86,126.8,7.0971]
[1764559221106,0.05076935,126.84,126.82,0.05627318]
[1764559224297,0.05076935,126.84,126.82,3.22627318]
[1764559224607,0.05076935,126.84,126.82,0.05627318]
[1764559225810,3.14076935,126.84,126.82,0.05627318]
[1764559226209,0.05076935,126.84,126.82,3.22627318]
[1764559229011,3.14076935,126.84,126.82,0.05627318]
[1764559229610,0.05076935,126.84,126.82,0.05627318]
[1764559230601,0.05076935,126.84,126.82,3.22627318]
[1764559230808,0.05076935,126.84,126.82,0.05627318]
[1764559232599,0.05076935,126.84,126.82,3.32627318]
[1764559233205,0.05076935,126.84,126.83,3.27]
[1764559237405,9.08491383,126.92,126.84,3.27]
[1764559237604,3.28,126.95,126.87,3.27]
[1764559237906,3.28,126.91,126.87,3.27]
[1764559238314,0.05662502,126.9,126.88,0.05268958]
[1764559241414,3.33662502,126.9,126.88,0.05268958]
[1764559244819,10.42872502,126.9,126.88,0.05268958]
[1764559247225,3.28,126.89,126.88,0.05268958]
[1764559247423,10.42872502,126.9,126.88,0.05268958]
[1764559249634,7.14872502,126.9,126.88,0.05268958]
[1764559249831,10.31872502,126.9,126.88,0.05268958]
[1764559253626,3.17,126.89,126.88,0.05268958]
[1764559257229,10.31872502,126.9,126.88,0.05268958]
[1764559257432,3.17,126.89,126.88,0.05268958]
[1764559258931,3.17,126.86,126.82,3.27]
[1764559260036,0.05956538,126.85,126.83,0.05477458]
[1764559260243,3.17,126.84,126.83,0.05477458]
[1764559261034,7.15436538,126.85,126.83,3.32477458]
[1764559261336,3.17,126.93,126.85,3.27]
[1764559261731,7.0922,126.9,126.85,3.27]
[1764559261934,10.2622,126.9,126.85,3.27]
[1764559262135,0.05575182,126.89,126.86,3.32890652]
[1764559262742,3.22575182,126.89,126.86,3.32890652]
[1764559263736,3.17,126.88,126.86,0.05890652]
[1764559265442,3.17,126.87,126.86,0.05890652]
[1764559266938,3.17,126.85,126.79,3.27]
[1764559267244,3.17,126.88,126.78,3.27]
[1764559267934,0.05635777,126.84,126.82,0.05041253]
[1764559268134,3.17,126.86,126.82,0.05235802]
[1764559268340,0.05079139,126.84,126.82,0.05235802]
[1764559269844,0.05079139,126.84,126.82,3.32235802]
[1764559270437,3.22079139,126.84,126.82,0.05235802]
[1764559271443,0.05079139,126.84,126.82,3.32235802]
[1764559272533,3.17,126.9,126.82,3.32235802]
[1764559272736,1.96973597,126.92,126.84,3.27]
[1764559272937,7.0918,126.91,126.85,3.27]
[1764559273134,3.17,126.95,126.87,3.27]
[1764559273439,7.0895,126.95,126.88,3.27]
[1764559273640,0.05551768,126.93,126.91,3.27]
[1764559273944,3.23040227,126.93,126.91,0.05401915]
[1764559274536,3.17,126.92,126.91,0.05401915]
[1764559275148,3.17,126.91,126.85,3.27]
[1764559275551,3.17,126.91,126.82,17.71]
[1764559275856,3.17,126.91,126.83,3.27]
[1764559276056,3.21977952,126.88,126.86,0.057129]
[1764559276353,3.22533633,126.88,126.86,0.05532873]
[1764559278152,0.05533633,126.88,126.86,0.05532873]
[1764559278859,3.22533633,126.88,126.86,0.05532873]
[1764559280457,10.31853633,126.88,126.86,0.05532873]
[1764559280763,3.26,126.87,126.86,0.05532873]
[1764559281553,7.14853633,126.88,126.86,0.05532873]
[1764559281762,0.05533633,126.88,126.86,3.39532873]
[1764559286963,3.37,126.95,126.87,3.38]
[1764559287157,3.37,126.98,126.87,3.38]
[1764559287463,9.26773898,126.97,126.87,3.38]
[1764559287662,3.37,126.97,126.9,3.38]
[1764559288073,7.0862,127.01,126.94,3.38]
[1764559288264,9.54458475,127.05,126.92,11.47083608]
[1764559288265,10.52276071,127.06,126.96,3.38]
[1764559288464,5.88946291,127.05,126.99,3.38]
[1764559288769,10.4532,127.06,126.99,3.38]
[1764559289273,0.05028,127.04,127.01,3.43722344]
[1764559290668,0.05028,127.04,127.01,0.05722344]
[1764559291268,3.42028,127.04,127.01,0.05722344]
[1764559292168,3.37,127.0,126.93,3.38]
[1764559292969,5.37,126.99,126.93,3.38]
[1764559293170,0.05673212,126.97,126.96,3.38]
[1764559294573,0.05673212,126.97,126.95,0.05662726]
[1764559294770,0.05673212,126.97,126.95,3.43662726]
[1764559296880,0.05673212,126.97,126.95,0.05662726]
[1764559296881,3.42673212,126.97,126.95,0.05662726]
[1764559297071,0.05673212,126.97,126.95,0.05662726]
[1764559298575,3.42673212,126.97,126.95,0.05662726]
[1764559298776,10.51503212,126.97,126.95,0.05662726]
[1764559299082,3.37,126.96,126.95,0.05662726]
[1764559300383,3.37,126.95,126.92,15.14]
[1764559301375,3.42673212,126.97,126.93,3.38]
[1764559301776,3.42673212,126.97,126.92,15.19326567]
[1764559301777,3.42673212,126.97,126.92,18.57326567]
[1764559302884,3.37,126.96,126.92,15.19326567]
[1764559303779,0.05673212,126.97,126.93,3.38]
[1764559303974,3.37,127.04,126.97,1.85]
[1764559304175,3.37,127.04,126.97,9.12965371]
[1764559304372,3.37,127.04,126.92,15.14]
[1764559304373,3.37,127.04,126.96,7.0881]
[1764559304582,3.37,127.02,126.94,9.12965371]
[1764559304977,3.4215162,126.99,126.97,0.05549693]
[1764559305188,3.37,126.98,126.97,0.05030355]
[1764559305980,7.14441279,126.99,126.97,0.05030355]
[1764559306178,0.05721279,126.99,126.97,0.05030355]
[1764559307189,3.42721279,126.99,126.97,0.05030355]
[1764559309293,3.37,126.98,126.97,0.05030355]
[1764559310291,3.11,126.96,126.91,7.27965371]
[1764559310484,3.11,126.96,126.92,1.9]
[1764559311183,3.11,126.94,126.93,0.05618213]
[1764559311383,3.11,126.94,126.92,0.05153845]
[1764559312791,0.050704,126.95,126.92,1.95153845]
[1764559313794,3.160704,126.95,126.92,0.05153845]
[1764559314690,0.050704,126.95,126.92,1.95153845]
[1764559315985,7.140004,126.95,126.92,1.95153845]
[1764559317995,10.1999,126.94,126.92,0.05153845]
[1764559318897,3.11,126.93,126.92,0.05153845]
[1764559320294,7.0899,126.94,126.92,0.05153845]
[1764559321302,7.0899,126.94,126.92,1.95153845]
[1764559322000,7.0899,126.94,126.92,0.05153845]
[1764559322394,10.1999,126.94,126.92,0.05153845]
[1764559322794,7.0899,126.94,126.92,0.05153845]
[1764559326787,10.1999,126.94,126.92,0.05153845]
[1764559327701,7.0899,126.94,126.92,1.95153845]
[1764559328995,7.64,126.97,126.92,1.95153845]
[1764559329196,3.11,127.02,126.95,1.9]
[1764559329399,3.11,127.02,126.98,1.9]
[1764559329596,3.11,127.05,127.01,1.9]
[1764559329798,3.11,127.08,127.01,1.9]
[1764559330196,0.05307194,127.06,127.03,9.23741693]
[1764559330401,0.05307194,127.06,127.04,1.9]
[1764559330902,3.11,127.11,127.04,1.9]
[1764559331599,7.081,127.1,127.04,1.9]
[1764559331904,3.11,127.07,127.06,0.05231548]
[1764559332202,3.11,127.07,127.05,0.05657233]
[1764559332400,3.16049501,127.07,127.05,0.05657233]
[1764559332602,0.05049501,127.07,127.05,0.05657233]
[1764559332796,0.05049501,127.07,127.05,7.33622604]
[1764559332996,0.05049501,127.07,127.05,9.23622604]
[1764559333603,0.05049501,127.07,127.06,1.9]
[1764559335198,6.7,127.1,127.06,1.9]
[1764559335395,6.7,127.1,127.09,7.27965371]
[1764559336109,133.6927,127.2,127.09,7.27965371]
[1764559336110,3.11,127.16,127.09,9.17965371]
[1764559336495,3.16129908,127.14,127.11,0.05723313]
[1764559336698,3.16359491,127.14,127.11,0.05326566]
[1764559337104,3.11,127.12,127.03,15.67965371]
[1764559338200,10.25188442,127.09,127.06,0.05376973]
[1764559338412,10.25167248,127.09,127.06,0.05530902]
[1764559338997,3.11,127.08,127.06,0.05530902]
[1764559339411,3.11,127.07,127.06,0.05530902]
[1764559339615,3.11,127.07,127.03,6.5]
[1764559340812,3.2603833,127.06,127.04,0.05458425]
[1764559341014,3.25832827,127.06,127.04,0.05458425]
[1764559341408,0.05832827,127.06,127.04,1.95458425]
[1764559343306,0.05832827,127.06,127.04,0.05458425]
[1764559345016,0.05832827,127.06,127.04,1.94458425]
[1764559345516,13.1304,127.11,127.05,1.89]
[1764559346722,13.1304,127.11,127.04,7.27965371]
[1764559346723,0.05536685,127.09,127.07,1.94013771]
[1764559348619,0.05536685,127.09,127.07,0.05013771]
[1764559349014,3.45536685,127.09,127.07,0.05013771]
[1764559349421,3.4,127.07,127.03,6.5]
[1764559349617,3.4,127.07,127.03,8.39]
[1764559350509,0.05830633,127.06,127.04,0.05840804]
[1764559350714,0.05830633,127.06,127.04,1.94840804]
[1764559350923,0.05830633,127.06,127.05,1.89]
[1764559351318,0.05830633,127.06,127.04,9.22806175]
[1764559351618,0.05830633,127.06,127.05,1.89]
[1764559354018,0.05830633,127.06,127.05,8.9736]
[1764559354227,9.45,127.11,127.06,1.89]
[1764559355228,0.05426797,127.1,127.07,0.05855569]
[1764559355426,0.05426797,127.1,127.07,1.94855569]
[1764559358525,3.4,127.08,127.07,0.05855569]
[1764559359329,3.4,127.05,127.0,1.89]
[1764559359929,3.4,127.04,127.0,1.89]
[1764559360130,10.4837,127.05,127.0,1.89]
[1764559360332,0.05808853,127.04,127.01,2.00975202]
[1764559360633,0.05808853,127.04,127.01,0.05975202]
[1764559360634,3.45808853,127.04,127.01,0.05975202]
[1764559360836,3.4,127.03,127.01,0.05975202]
[1764559361034,3.4,127.03,126.96,19.9]
[1764559361530,3.4,126.99,126.96,19.9]
[1764559362129,3.4565803,126.99,126.96,19.95031016]
[1764559362333,3.4,126.97,126.96,0.05031016]
[1764559364629,3.4,126.96,126.88,47.64734781]
[1764559364829,3.4,126.96,126.89,1.95]
[1764559365638,0.05573985,126.94,126.91,0.05782033]
[1764559366338,0.05573985,126.94,126.91,2.00782033]
[1764559368231,0.05573985,126.94,126.92,1.95]
[1764559369735,0.05573985,126.94,126.91,0.05782033]
[1764559369935,3.30573985,126.94,126.91,0.05782033]
[1764559370743,10.39593985,126.94,126.91,0.05782033]
[1764559371239,0.05573985,126.94,126.91,2.01782033]
[1764559372145,0.05573985,126.94,126.92,1.96]
[1764559375133,0.05573985,126.94,126.91,13.42216814]
[1764559375644,0.05573985,126.94,126.91,2.01782033]
[1764559375840,3.30573985,126.94,126.91,0.05782033]
[1764559376249,0.05573985,126.94,126.91,2.01782033]
[1764559377546,7.55573985,126.94,126.93,1.96]
[1764559379140,7.55573985,126.94,126.92,11.40434781]
[1764559379647,7.55573985,126.94,126.92,13.36434781]
[1764559380340,10.80573985,126.94,126.91,0.05782033]
[1764559381241,10.80573985,126.94,126.91,2.01782033]
[1764559381242,7.55573985,126.94,126.91,2.01782033]
[1764559383038,3.25,127.01,126.93,1.96]
[1764559383244,3.25,127.01,126.95,11.40434781]
[1764559383443,3.25,127.01,126.94,11.40434781]
[1764559384147,3.3092379,126.99,126.96,0.05296908]
[1764559384350,3.30998612,126.99,126.96,0.05066031]
[1764559385957,0.05998612,126.99,126.96,2.01066031]
[1764559386751,0.35,127.01,126.96,2.01066031]
[1764559386752,0.35,127.01,126.98,1.96]
[1764559387842,3.65262685,127.01,126.98,1.96]
[1764559388938,3.65262685,127.01,126.97,11.40434781]
[1764559389550,3.65262685,127.01,126.96,0.05066031]
[1764559390354,3.25,127.0,126.96,0.05066031]
[1764559390849,3.65262685,127.01,126.96,2.01066031]
[1764559391548,0.40262685,127.01,126.98,1.96]
[1764559399151,3.65262685,127.01,126.97,11.40434781]
[1764559399348,3.65262685,127.01,126.96,2.01066031]
[1764559399860,0.40262685,127.01,126.97,1.95]
[1764559400155,0.40262685,127.01,126.98,1.95]
[1764559401461,0.13385228,127.01,126.99,1.95]
[1764559401657,0.13385228,127.01,126.99,2.00564922]
[1764559401852,0.13385228,127.01,127.0,9.0363]
[1764559402753,0.13385228,127.01,126.99,0.05564922]
[1764559403759,0.13385228,127.01,126.99,2.00564922]
[1764559404355,0.13385228,127.01,127.0,1.95]
[1764559405960,10.3627,127.07,127.02,1.95]
[1764559406462,10.3615,127.09,127.04,1.95]
[1764559406662,3.28,127.08,127.04,1.95]
[1764559406862,0.05840401,127.07,127.05,0.05889695]
[1764559407364,0.05840401,127.07,127.05,2.00889695]
[1764559408471,0.05840401,127.07,127.06,1.95]
[1764559410968,0.05840401,127.07,127.05,0.05889695]
[1764559410969,3.33840401,127.07,127.05,0.05889695]
[1764559411169,0.05840401,127.07,127.05,2.00889695]
[1764559415275,3.33840401,127.07,127.05,0.05889695]
[1764559416774,0.05840401,127.07,127.05,0.05889695]
[1764559416980,3.33840401,127.07,127.05,0.05889695]
[1764559422282,0.05840401,127.07,127.05,2.00889695]
[1764559422878,0.05840401,127.07,127.06,1.95]
[1764559423481,10.3594,127.13,127.07,9.0323]
[1764559424183,3.28,127.12,127.07,9.0323]
[1764559424385,3.33784795,127.11,127.08,0.05797087]
[1764559426393,3.33784795,127.11,127.08,2.00797087]
[1764559426697,3.28,127.14,127.1,7.25855083]
[1764559426999,3.28,127.14,127.1,30.56469614]
[1764559427189,3.28,127.14,127.1,7.25855083]
[1764559427390,3.28,127.14,127.1,9.20855083]
[1764559427696,0.0288077,127.13,127.11,0.05824342]
[1764559427891,3.3088077,127.13,127.11,0.05824342]
[1764559428086,0.0288077,127.13,127.11,0.05824342]
[1764559428492,0.0288077,127.13,127.12,2.6120621]
[1764559429798,3.28,127.16,127.13,1.94]
[1764559430000,3.28,127.16,127.15,2.6120621]
[1764559431601,7.076,127.19,127.15,2.6120621]
[1764559431602,3.26,127.18,127.15,2.6120621]
[1764559433901,3.26,127.15,127.14,0.05355752]
[1764559437399,7.0788,127.14,127.08,7.25608928]
[1764559437601,3.26,127.13,127.08,2.0]
[1764559438505,0.05355752,127.12,127.09,2.05623383]
[1764559438800,0.05355752,127.12,127.09,2.04966404]
[1764559439695,3.31355752,127.12,127.09,2.04966404]
[1764559440801,3.31355752,127.12,127.09,25.31041342]
[1764559441001,0.05355752,127.12,127.09,2.04966404]
[1764559441604,3.31355752,127.12,127.09,2.04966404]
[1764559443910,3.26,127.11,127.09,0.04966404]
[1764559444596,10.3405,127.11,127.09,0.04966404]
[1764559444801,10.3405,127.11,127.02,62.0]
[1764559444802,3.26,127.1,127.02,7.25608928]
[1764559444999,3.26,127.1,127.01,2.05]
[1764559445796,3.26,127.06,127.04,0.05090082]
[1764559445998,3.31377721,127.06,127.04,0.05171432]
[1764559447814,3.26,127.05,126.99,7.0866]
[1764559448508,3.26,127.03,126.97,57.781036]
[1764559448818,3.26,127.0,126.99,0.05231089]
[1764559453408,0.05156299,127.01,126.99,0.05231089]
[1764559453612,3.31156299,127.01,126.99,0.05231089]
[1764559454013,10.39756299,127.01,126.99,0.05231089]
[1764559454319,3.26,127.0,126.99,0.05231089]
[1764559455110,0.05156299,127.01,126.99,2.15231089]
[1764559455304,0.05156299,127.01,126.99,0.05231089]
[1764559458310,0.05156299,127.01,127.0,2.61709653]
[1764559459620,3.31156299,127.01,127.0,2.61709653]
[1764559464823,3.31156299,127.01,126.99,0.05231089]
[1764559465122,3.31156299,127.01,127.0,2.61709653]
[1764559465514,3.31156299,127.01,126.99,0.05231089]
[1764559465729,3.31156299,127.01,127.0,2.61709653]
[1764559467123,3.31156299,127.01,126.99,0.05231089]
[1764559467424,3.16,127.0,126.99,0.05231089]
[1764559471122,3.16,127.0,126.89,79.64]
[1764559471315,3.16,126.96,126.94,2.61709653]
[1764559471517,3.16,126.96,126.95,2.61709653]
[1764559471911,10.2487,126.96,126.95,2.61709653]
[1764559474325,3.16,126.95,126.94,0.05440424]
[1764559474530,3.16,126.95,126.94,2.67150077]
[1764559474829,3.16,126.95,126.94,7.7e-07]
[1764559475723,3.21409605,126.97,126.94,7.7e-07]
[1764559476920,3.21409605,126.97,126.93,2.20123839]
[1764559476921,10.30209605,126.97,126.96,9.653e-05]
[1764559477830,7.14209605,126.97,126.96,9.653e-05]
[1764559478030,0.05409605,126.97,126.96,9.653e-05]
[1764559478634,3.21409605,126.97,126.96,9.653e-05]
[1764559480234,3.16,126.95,126.94,2.61709653]
[1764559483535,7.0887,126.96,126.94,2.61709653]
[1764559483831,10.2487,126.96,126.94,2.61709653]
[1764559485334,3.16,126.95,126.94,2.61709653]
[1764559485530,10.2487,126.96,126.94,2.61709653]
[1764559486336,0.05409605,126.97,126.94,6.24197497]
[1764559488038,0.05409605,126.97,126.95,2.15]
[1764559489238,0.05409605,126.97,126.96,6.24197497]
[1764559491443,0.05409605,126.97,126.96,4.09197497]
[1764559491941,0.05409605,126.97,126.96,6.24197497]
[1764559492534,0.05409605,126.97,126.96,4.09197497]
[1764559492734,0.05409605,126.97,126.96,6.24197497]
[1764559498340,3.11,127.04,126.97,2.15]
[1764559498543,3.11,127.03,127.0,2.15]
[1764559498844,3.11,127.08,127.01,6.24197497]
[1764559499038,3.11,127.06,127.03,6.24197497]
[1764559499343,3.16697934,127.06,127.03,6.29714818]
[1764559499543,3.11,127.05,127.03,0.05517321]
[1764559500145,10.1937,127.05,127.03,0.05517321]
[1764559500351,3.11,127.04,127.03,0.05517321]
[1764559505554,3.11,127.02,126.99,4.09197497]
[1764559505751,3.11,127.04,127.0,2.21]
[1764559506251,7.0839,127.05,127.02,2.21]
[1764559506459,0.05710978,127.03,127.02,2.21]
[1764559506641,7.0839,127.05,127.02,2.21]
[1764559506842,7.0829,127.07,127.02,2.21]
[1764559507048,37.7863,127.15,127.02,2.21]
[1764559507049,3.11,127.12,127.02,2.21]
[1764559507646,0.05182444,127.08,127.07,4.09197497]
[1764559507843,0.05550448,127.09,127.07,4.09197497]
[1764559508249,3.11,127.08,127.06,0.05106842]
[1764559508850,10.24710448,127.09,127.06,2.26106842]
[1764559510364,7.13710448,127.09,127.06,2.26106842]
[1764559510866,0.05550448,127.09,127.06,2.26106842]